bitfinex-derivatives/quotes_BTCF0:USTF0_20210108
["timestamp","ask_amount","ask_price","bid_price","bid_amount"]
[1610109929916,0.42258797,41398.0,41394.0,0.00029146]
[1610109931417,3.4343,41395.0,41394.0,0.00029146]
[1610109931617,3.4343,41395.0,41369.0,0.1106]
[1610109931822,0.42258797,41398.0,41354.0,2.4442633]
[1610109932121,3.8048,41383.0,41355.0,0.00029152]
[1610109932319,3.8048,41383.0,41380.0,0.13632608]
[1610109932520,0.08537,41388.0,41380.0,0.13632608]
[1610109932721,0.08537,41388.0,41381.0,0.00029154]
[1610109934426,0.13632608,41382.0,41381.0,0.00029154]
[1610109934825,0.13632608,41382.0,41364.0,0.10815]
[1610109935327,0.5152,41381.0,41365.0,0.00029157]
[1610109936329,0.0714,41380.0,41379.0,0.13632608]
[1610109936825,0.5152,41381.0,41379.0,0.13661765]
[1610109937331,0.5152,41381.0,41379.0,0.00029157]
[1610109937527,0.5152,41381.0,41380.0,0.00029157]
[1610109937727,0.5152,41381.0,41354.0,0.122]
[1610109937928,0.5878,41381.0,41335.0,2.43764349]
[1610109938128,0.0726,41381.0,41335.0,2.43764349]
[1610109938328,0.08537,41388.0,41361.0,0.13632608]
[1610109938329,3.2205,41363.0,41361.0,0.13632608]
[1610109938829,0.11051,41375.0,41362.0,0.00029162]
[1610109939329,0.18381,41375.0,41362.0,0.00029162]
[1610109940432,0.11051,41375.0,41362.0,0.00029162]
[1610109940835,4.005,41364.0,41348.0,0.00029166]
[1610109941034,4.005,41364.0,41363.0,0.00029171]
[1610109941433,4.005,41364.0,41348.0,0.00029171]
[1610109941734,4.005,41364.0,41363.0,0.00029174]
[1610109941936,4.005,41364.0,41349.0,0.00029174]
[1610109942136,4.005,41364.0,41348.0,0.00029174]
[1610109942335,4.005,41364.0,41363.0,0.13632608]
[1610109942937,4.005,41364.0,41363.0,0.13661782]
[1610109944439,4.14132608,41364.0,41363.0,0.13661782]
[1610109944740,0.13632608,41364.0,41363.0,0.13661782]
[1610109945639,0.13632608,41364.0,41363.0,0.13632608]
[1610109946941,0.13632608,41364.0,41363.0,0.13661783]
[1610109947439,0.09331,41365.0,41363.0,0.13661783]
[1610109947739,0.11051,41375.0,41363.0,0.13661783]
[1610109947953,1.51433834,41447.0,41363.0,0.13661783]
[1610109947954,1.5029734,41447.0,41364.0,0.00029175]
[1610109948141,3.3743,41408.0,41364.0,0.00029175]
[1610109948341,0.10918,41398.0,41379.0,0.13632608]
[1610109948541,3.3743,41408.0,41379.0,0.13632608]
[1610109949242,3.6155,41419.0,41380.0,0.00029167]
[1610109949441,1.0,41424.0,41380.0,0.00029167]
[1610109949853,0.00029514,41423.0,41380.0,0.00029167]
[1610109950043,0.10687514,41423.0,41380.0,0.00029167]
[1610109950448,0.10687514,41423.0,41402.0,0.13632608]
[1610109950642,0.00029512,41422.0,41402.0,0.13632608]
[1610109950842,0.10658,41423.0,41370.0,0.12481]
[1610109951544,0.10658,41423.0,41371.0,0.02980436]
[1610109952450,0.10658,41423.0,41400.0,0.13632608]
[1610109952945,0.00029513,41422.0,41400.0,0.13632608]
[1610109953347,0.5615,41421.0,41370.0,0.12481]
[1610109953745,0.5615,41421.0,41371.0,0.02980495]
[1610109953746,0.00029513,41420.0,41371.0,0.02980495]
[1610109954647,3.5275,41412.0,41371.0,0.02980495]
[1610109955051,3.63766,41412.0,41371.0,0.02980495]
[1610109956552,0.11016,41412.0,41362.0,0.02980642]
[1610109956754,2.7767,41390.0,41362.0,0.02980642]
[1610109957051,0.08746,41390.0,41388.0,0.00029165]
[1610109957253,0.08746,41390.0,41363.0,0.02980857]
[1610109957254,3.9936,41373.0,41363.0,0.02980857]
[1610109957452,3.9936,41373.0,41362.0,0.02951749]
[1610109957653,3.9936,41373.0,41364.0,0.0298101]
[1610109958054,3.9936,41373.0,41363.0,0.0298101]
[1610109958252,3.9936,41373.0,41353.0,0.02981017]
[1610109958554,3.9936,41373.0,41372.0,0.13632608]
[1610109958954,0.12071,41376.0,41372.0,0.16613842]
[1610109959355,0.4412,41375.0,41373.0,0.02981186]
[1610109961660,0.12071,41376.0,41373.0,0.02981186]
[1610109962059,3.2428,41374.0,41373.0,0.02981186]
[1610109962259,0.12071,41376.0,41373.0,0.02981186]
[1610109962460,0.13632608,41374.0,41373.0,0.02952016]
[1610109962662,0.22742608,41374.0,41373.0,0.02952016]
[1610109962860,0.22742608,41374.0,41353.0,0.02981132]
[1610109963061,3.39522608,41374.0,41353.0,0.02981132]
[1610109964467,3.2589,41374.0,41365.0,0.13632608]
[1610109964665,3.2589,41374.0,41353.0,0.02981132]
[1610109964865,3.2589,41374.0,41344.0,0.10475]
[1610109965066,3.2589,41374.0,41354.0,0.02981034]
[1610109965269,3.2589,41374.0,41345.0,0.02981018]
[1610109965666,3.2589,41374.0,41355.0,0.02981029]
[1610109965965,3.2589,41374.0,41346.0,0.02981231]
[1610109966166,0.0911,41374.0,41356.0,0.02981311]
[1610109966366,2.9483,41360.0,41347.0,0.029813]
[1610109966567,0.13632608,41355.0,41347.0,0.13632608]
[1610109966968,0.13632608,41355.0,41348.0,0.02981292]
[1610109967772,0.13632608,41355.0,41348.0,0.02952547]
[1610109968472,0.13632608,41355.0,41354.0,0.13632608]
[1610109968971,0.13632608,41355.0,41354.0,0.16613826]
[1610109969575,2.9483,41360.0,41354.0,0.16613826]
[1610109969974,2.9483,41360.0,41355.0,0.02981236]
[1610109970576,2.9483,41360.0,41359.0,0.13632608]
[1610109971076,2.9483,41360.0,41359.0,0.1661386]
[1610109971277,0.0911,41374.0,41359.0,0.1661386]
[1610109971577,3.649,41375.0,41359.0,0.02981252]
[1610109971980,3.649,41375.0,41360.0,0.02981206]
[1610109972177,3.649,41375.0,41350.0,0.08886141]
[1610109972377,3.649,41375.0,41361.0,0.02981246]
[1610109972677,0.13632608,41362.0,41355.0,0.13632608]
[1610109972881,0.5029,41361.0,41356.0,0.02981254]
[1610109973379,0.5029,41361.0,41349.0,0.08886178]
[1610109973781,0.5029,41361.0,41348.0,0.17742789]
[1610109973980,0.5029,41361.0,41350.0,0.02981288]
[1610109974182,0.5029,41361.0,41349.0,0.02981173]
[1610109974580,0.5029,41361.0,41348.0,0.08885855]
[1610109974783,0.5029,41361.0,41350.0,0.02981325]
[1610109974981,0.5029,41361.0,41349.0,0.02981336]
[1610109975384,0.5029,41361.0,41351.0,0.0298144]
[1610109975583,0.5029,41361.0,41350.0,0.02981481]
[1610109975882,0.1105,41366.0,41352.0,0.02981569]
[1610109976082,3.7371,41353.0,41351.0,0.02981663]
[1610109976283,0.1106,41354.0,41345.0,0.02981895]
[1610109976496,1.5,41351.0,41345.0,0.02981895]
[1610109976683,1.5,41351.0,41339.0,0.05906784]
[1610109976886,1.5,41351.0,41346.0,0.0298237]
[1610109977183,1.5,41351.0,41319.0,2.62956962]
[1610109977184,1.5,41351.0,41326.0,0.08890564]
[1610109977383,1.5,41351.0,41313.0,0.09134]
[1610109977384,1.5,41351.0,41347.0,0.02982819]
[1610109977585,1.5,41351.0,41322.0,0.05908115]
[1610109977988,1.5,41351.0,41315.0,0.08891009]
[1610109978185,3.5445,41325.0,41323.0,0.00028472]
[1610109978384,0.1146,41327.0,41316.0,0.0298326]
[1610109978584,0.13632608,41317.0,41316.0,0.0298326]
[1610109978784,3.9191,41313.0,41310.0,0.02954791]
[1610109979084,0.0721,41312.0,41306.0,2.48160787]
[1610109979284,0.0721,41312.0,41311.0,0.02983294]
[1610109979485,3.9191,41313.0,41308.0,0.0298337]
[1610109979685,3.9191,41313.0,41312.0,0.02983331]
[1610109979886,0.13632608,41317.0,41312.0,0.02983331]
[1610109980089,2.9872,41313.0,41309.0,0.02983384]
[1610109980287,2.9872,41313.0,41312.0,0.00028478]
[1610109980489,0.07761,41318.0,41297.0,2.62588896]
[1610109980490,0.13632608,41310.0,41298.0,2.4782881]
[1610109980690,1.5,41309.0,41295.0,2.47860507]
[1610109980991,1.5,41309.0,41286.0,2.47887833]
[1610109980992,1.61094,41309.0,41286.0,2.47887833]
[1610109981289,1.61094,41309.0,41262.0,3.06214382]
[1610109981290,2.8242,41300.0,41263.0,2.65130718]
[1610109981491,1.6993,41300.0,41269.0,2.47582105]
[1610109981689,1.6993,41300.0,41248.0,2.70101455]
[1610109981891,3.0657,41270.0,41249.0,2.4772428]
[1610109982091,3.15486,41270.0,41249.0,2.4772428]
[1610109982294,0.08916,41270.0,41224.0,2.47768729]
[1610109982593,3.35762608,41250.0,41209.0,2.4706372]
[1610109982798,0.24457608,41250.0,41209.0,2.4706372]
[1610109982993,2.8821,41210.0,41167.0,3.05266501]
[1610109983190,2.8821,41210.0,41197.0,0.00028247]
[1610109983390,0.112,41225.0,41197.0,0.11942247]
[1610109983591,0.112,41225.0,41197.0,0.11914]
[1610109984491,0.13632608,41198.0,41197.0,0.11914]
[1610109984892,0.20842608,41198.0,41197.0,0.11914]
[1610109985394,0.20842608,41198.0,41153.0,3.5166]
[1610109985893,0.13632608,41198.0,41153.0,3.5166]
[1610109986094,0.13632608,41198.0,41087.0,0.1569]
[1610109986294,0.12021,41203.0,41159.0,3.9899]
[1610109986496,0.12021,41203.0,41201.0,0.13632608]
[1610109986895,0.13632608,41216.0,41201.0,0.13632608]
[1610109987095,0.0722,41228.0,41201.0,0.13632608]
[1610109987295,0.00288871,41249.0,41201.0,0.23502608]
[1610109987594,0.10825,41250.0,41201.0,0.23502608]
[1610109988395,3.8777,41258.0,41201.0,0.23502608]
[1610109988696,3.8777,41258.0,41210.0,0.13632608]
[1610109988896,3.8777,41258.0,41210.0,0.10098]
[1610109990098,3.8777,41258.0,41201.0,0.0987]
[1610109990298,3.96022,41258.0,41201.0,0.0987]
[1610109990598,3.96022,41258.0,41188.0,0.08988]
[1610109990599,0.13632608,41202.0,41188.0,0.08988]
[1610109992398,0.13632608,41202.0,41163.0,3.4877]
[1610109992699,0.13632608,41177.0,41153.0,0.13632608]
[1610109993101,0.10689,41202.0,41153.0,0.13632608]
[1610109993302,0.10689,41202.0,41153.0,0.24393608]
[1610109994704,0.10689,41202.0,41176.0,0.13632608]
[1610109994903,0.10689,41202.0,41176.0,0.25003608]
[1610109995304,0.5706,41201.0,41176.0,0.25003608]
[1610109995505,0.5706,41201.0,41176.0,0.11371]
[1610109996604,0.13632608,41167.0,41165.0,0.13632608]
[1610109996803,0.13632608,41167.0,41153.0,0.10761]
[1610109997803,0.09128,41189.0,41153.0,0.10761]
[1610109998411,0.09128,41189.0,41153.0,0.09262]
[1610109998608,0.09128,41189.0,41178.0,0.13632608]
[1610109999506,0.10689,41202.0,41178.0,0.25565608]
[1610109999806,0.11376,41211.0,41178.0,0.25565608]
[1610110000209,0.072,41223.0,41178.0,0.11933]
[1610110000611,0.13632608,41181.0,41178.0,0.11933]
[1610110002409,0.13632608,41181.0,41169.0,0.11405]
[1610110002610,0.13632608,41170.0,41159.0,0.13632608]
[1610110003310,0.13632608,41170.0,41153.0,0.09262]
[1610110003513,2.7871,41160.0,41103.0,3.9214]
[1610110003712,0.13632608,41170.0,41075.0,2.37484848]
[1610110003910,3.0988,41133.0,41075.0,2.53174848]
[1610110004112,0.23134608,41170.0,41098.0,0.11291]
[1610110004413,3.6702,41153.0,41098.0,0.11291]
[1610110004613,3.6702,41153.0,41112.0,0.13632608]
[1610110004812,3.6702,41153.0,41112.0,0.21418608]
[1610110005413,3.6702,41153.0,41112.0,0.07786]
[1610110005916,3.6702,41153.0,41098.0,0.11291]
[1610110006615,0.13632608,41099.0,41078.0,3.004]
[1610110006815,0.26389608,41099.0,41078.0,3.004]
[1610110007417,0.26389608,41099.0,41071.0,0.13632608]
[1610110008317,0.26389608,41099.0,41044.0,0.1569]
[1610110008318,3.0079,41095.0,41044.0,0.1569]
[1610110008523,3.0079,41095.0,41016.0,3.8498]
[1610110008724,0.13632608,41061.0,41059.0,0.13632608]
[1610110009019,3.0079,41095.0,41059.0,0.13632608]
[1610110009219,0.0722,41080.0,41073.0,0.13632608]
[1610110009418,0.0722,41080.0,41013.0,3.2206]
[1610110010319,0.12757,41099.0,41013.0,3.2206]
[1610110010620,0.13632608,41036.0,41028.0,0.13632608]
[1610110010919,0.13632608,41036.0,41013.0,0.08819]
[1610110011122,3.5193,41074.0,41013.0,0.08693]
[1610110011324,0.0739,41080.0,41013.0,0.08693]
[1610110011523,0.10297,41089.0,41013.0,0.08693]
[1610110011723,3.7334,41105.0,41013.0,0.08693]
[1610110012122,0.00269055,41205.0,41013.0,0.08693]
[1610110012322,0.46136537,41210.0,41013.0,0.08693]
[1610110012323,3.2105,41150.0,41026.0,3.3092]
[1610110012525,3.2105,41150.0,41026.0,3.39502]
[1610110013023,3.2105,41150.0,41101.0,0.13632608]
[1610110013224,0.0719,41183.0,41101.0,0.25469608]
[1610110013423,0.0719,41183.0,41101.0,0.11837]
[1610110013724,3.3278,41170.0,41101.0,0.11837]
[1610110013927,0.000297,41169.0,41101.0,0.11837]
[1610110014230,0.083077,41169.0,41101.0,0.11837]
[1610110014623,0.08278,41169.0,41101.0,0.11837]
[1610110014927,0.08278,41169.0,41113.0,0.13632608]
[1610110015123,0.08278,41169.0,41113.0,0.24623608]
[1610110016326,3.1865,41204.0,41113.0,0.24623608]
[1610110017026,3.1865,41204.0,41171.0,0.13632608]
[1610110017226,0.1569,41270.0,41171.0,0.25967608]
[1610110017425,2.8846,41268.0,41171.0,0.25967608]
[1610110017626,2.98836,41268.0,41171.0,0.25967608]
[1610110017829,0.0726,41267.0,41171.0,0.25967608]
[1610110018026,0.08914827,41267.0,41171.0,0.25967608]
[1610110018227,0.01654827,41267.0,41171.0,0.12335]
[1610110018428,1.0,41227.0,41171.0,0.12335]
[1610110018627,1.09932,41227.0,41171.0,0.12335]
[1610110018828,0.00029668,41226.0,41155.0,2.793]
[1610110019129,0.00029668,41226.0,41113.0,0.10991]
[1610110019130,0.13632608,41180.0,41172.0,0.13632608]
[1610110019429,0.13632608,41180.0,41131.0,3.495]
[1610110020929,0.13632608,41155.0,41146.0,0.13632608]
[1610110021229,0.13632608,41155.0,41113.0,0.10991]
[1610110021431,0.13632608,41155.0,41110.0,3.528]
[1610110023029,0.13632608,41128.0,41123.0,0.13632608]
[1610110023828,0.09328,41148.0,41110.0,3.528]
[1610110024032,0.09328,41148.0,41110.0,3.64442]
[1610110025031,0.13632608,41123.0,41122.0,0.13632608]
[1610110026035,0.13632608,41123.0,41110.0,0.11642]
[1610110026938,0.13632608,41111.0,41110.0,0.11642]
[1610110027133,0.09328,41148.0,41110.0,0.11642]
[1610110028433,0.10523,41159.0,41110.0,0.11642]
[1610110028635,2.9482,41160.0,41110.0,0.11642]
[1610110029035,0.13632608,41126.0,41121.0,0.13632608]
[1610110029937,0.11526,41142.0,41121.0,0.13632608]
[1610110030271,0.11526,41142.0,41121.0,0.25511608]
[1610110030437,0.10033,41175.0,41121.0,0.25511608]
[1610110030737,3.6635,41197.0,41121.0,0.25511608]
[1610110030937,3.6635,41197.0,41152.0,0.13632608]
[1610110031241,0.00029677,41183.0,41146.0,0.09194]
[1610110031437,0.11794,41183.0,41146.0,0.09194]
[1610110031637,0.15527296,41148.0,41146.0,0.09194]
[1610110032940,0.13632608,41147.0,41146.0,0.09194]
[1610110033237,0.13632608,41147.0,41121.0,0.11879]
[1610110035140,0.13632608,41135.0,41132.0,0.13632608]
[1610110035941,0.15527296,41148.0,41132.0,0.13632608]
[1610110037042,0.15527296,41148.0,41143.0,0.13632608]
[1610110039044,0.15527296,41148.0,41143.0,0.24658608]
[1610110040248,0.15527296,41148.0,41143.0,0.11026]
[1610110040547,0.15527296,41148.0,41131.0,0.08767]
[1610110040946,0.13632608,41132.0,41131.0,0.08767]
[1610110041246,0.13632608,41132.0,41117.0,0.13632608]
[1610110041647,0.13632608,41132.0,41118.0,0.00028132]
[1610110041947,0.13632608,41132.0,41118.0,0.07990132]
[1610110042147,0.15527296,41148.0,41118.0,0.07990132]
[1610110042350,0.15527296,41148.0,41119.0,0.00028132]
[1610110042950,0.15527296,41148.0,41140.0,0.13632608]
[1610110044955,0.13632608,41141.0,41140.0,0.13632608]
[1610110045155,0.13632608,41141.0,41118.0,0.07962]
[1610110045654,0.13632608,41141.0,41119.0,0.00028131]
[1610110046957,0.13632608,41127.0,41119.0,0.00028131]
[1610110047657,0.12541,41141.0,41119.0,0.00028131]
[1610110049162,0.13632608,41126.0,41119.0,0.00028131]
[1610110049363,0.12541,41141.0,41119.0,0.00028131]
[1610110049965,0.15527296,41148.0,41119.0,0.00028131]
[1610110050163,0.15527296,41148.0,41119.0,0.02996208]
[1610110051063,0.15527296,41148.0,41147.0,0.13632608]
[1610110051264,1.0,41215.0,41147.0,0.23561608]
[1610110051665,0.00029671,41182.0,41148.0,0.00028173]
[1610110051865,0.11021,41197.0,41148.0,0.00028173]
[1610110052467,0.00029668,41196.0,41148.0,0.00028173]
[1610110053066,0.00029668,41196.0,41187.0,0.13632608]
[1610110053966,0.00029668,41196.0,41173.0,0.08607]
[1610110054282,0.11021,41197.0,41174.0,0.00028325]
[1610110054471,0.12544,41221.0,41174.0,0.00028325]
[1610110054969,0.00029658,41220.0,41174.0,0.00028325]
[1610110055268,0.00029658,41220.0,41202.0,0.13632608]
[1610110055668,0.00029658,41220.0,41203.0,0.00028319]
[1610110056167,0.00029658,41220.0,41200.0,0.07773]
[1610110056368,0.12544,41221.0,41200.0,0.07773]
[1610110057069,0.13632608,41201.0,41200.0,0.07773]
[1610110057269,0.12544,41221.0,41200.0,0.07773]
[1610110059070,0.13632608,41221.0,41215.0,0.13632608]
[1610110059270,0.00029644,41256.0,41215.0,0.21770608]
[1610110059471,1.0,41258.0,41215.0,0.21770608]
[1610110059871,0.00029642,41255.0,41215.0,0.21770608]
[1610110060074,0.10413,41255.0,41215.0,0.21770608]
[1610110060271,0.00029639,41254.0,41215.0,0.21770608]
[1610110060672,0.10413,41255.0,41215.0,0.21770608]
[1610110060972,0.10413,41255.0,41215.0,0.65820608]
[1610110061173,0.10413,41255.0,41254.0,0.13632608]
[1610110062473,0.00288132,41301.0,41254.0,0.13632608]
[1610110062676,0.00029623,41300.0,41254.0,0.13632608]
[1610110062874,0.11226623,41300.0,41254.0,0.13632608]
[1610110063074,0.11197,41300.0,41270.0,0.13632608]
[1610110063274,0.00029616,41299.0,41270.0,0.13632608]
[1610110064176,0.11197,41300.0,41251.0,0.09983]
[1610110065077,0.11197,41300.0,41241.0,0.12263]
[1610110065078,0.13632608,41252.0,41245.0,0.13632608]
[1610110065781,0.13632608,41252.0,41232.0,0.12704]
[1610110066479,0.13632608,41252.0,41206.0,3.7464]
[1610110067077,0.13632608,41238.0,41233.0,0.13632608]
[1610110067277,0.09904,41238.0,41233.0,0.13632608]
[1610110068378,0.1263,41255.0,41233.0,0.13632608]
[1610110068580,0.1263,41255.0,41233.0,0.22393608]
[1610110068878,0.10441,41264.0,41233.0,0.22393608]
[1610110069078,0.10441,41264.0,41251.0,0.13632608]
[1610110069279,0.10441,41264.0,41233.0,0.08761]
[1610110070281,0.1569,41272.0,41233.0,0.08761]
[1610110070482,0.1626284,41252.0,41233.0,0.08761]
[1610110070681,0.2481284,41252.0,41233.0,0.08761]
[1610110071183,0.2481284,41252.0,41251.0,0.13632608]
[1610110071783,0.1626284,41252.0,41251.0,0.13632608]
[1610110073884,0.1626284,41252.0,41247.0,0.10823]
[1610110074285,0.1626284,41252.0,41233.0,0.08761]
[1610110074487,0.1626284,41252.0,41218.0,3.9474]
[1610110075189,0.1626284,41252.0,41232.0,0.13632608]
[1610110077091,0.13632608,41249.0,41248.0,0.13632608]
[1610110077693,0.1626284,41252.0,41248.0,0.13632608]
[1610110077892,0.1626284,41252.0,41248.0,0.22503608]
[1610110079293,0.29895448,41252.0,41248.0,0.22503608]
[1610110079795,0.29895448,41252.0,41248.0,0.08871]
[1610110080596,0.29895448,41252.0,41238.0,0.10423]
[1610110081199,0.1626284,41252.0,41238.0,0.10423]
[1610110081398,0.2405484,41252.0,41238.0,0.10423]
[1610110081701,0.00029615,41251.0,41196.0,3.0456]
[1610110082198,0.00029615,41251.0,41167.0,2.43829024]
[1610110082199,1.50029615,41251.0,41167.0,2.43829024]
[1610110082402,1.50029615,41251.0,41161.0,2.58171908]
[1610110082403,4.505,41247.0,41161.0,2.43856873]
[1610110082601,1.5,41247.0,41168.0,0.00028289]
[1610110082799,0.0002963,41246.0,41168.0,0.09979289]
[1610110083002,1.5,41239.0,41169.0,0.00028294]
[1610110083199,0.13632608,41175.0,41172.0,0.13632608]
[1610110083500,0.08868,41184.0,41172.0,0.13632608]
[1610110084700,1.0,41213.0,41172.0,0.13632608]
[1610110085200,0.13632608,41173.0,41172.0,0.13632608]
[1610110085800,0.13632608,41173.0,41168.0,0.09951]
[1610110086002,0.13632608,41173.0,41144.0,2.9549]
[1610110086300,0.13632608,41173.0,41113.0,2.87348449]
[1610110086301,0.13632608,41173.0,41124.0,2.44313476]
[1610110086501,0.13632608,41173.0,41145.0,0.00027687]
[1610110086701,0.13632608,41173.0,41145.0,0.12275687]
[1610110086902,0.13632608,41173.0,41145.0,0.12248]
[1610110087304,0.113,41176.0,41145.0,0.12248]
[1610110089302,0.113,41176.0,41150.0,0.13632608]
[1610110091305,0.13632608,41151.0,41150.0,0.13632608]
[1610110091704,0.10486,41170.0,41150.0,0.13632608]
[1610110092704,0.12561,41185.0,41150.0,0.13632608]
[1610110092904,0.1133,41195.0,41150.0,0.13632608]
[1610110093104,4.0476,41219.0,41150.0,0.13632608]
[1610110093303,4.0476,41219.0,41168.0,0.13632608]
[1610110095108,5.5476,41219.0,41165.0,0.07939]
[1610110095306,0.13632608,41169.0,41165.0,0.07939]
[1610110095507,0.13632608,41169.0,41160.0,0.13632608]
[1610110096808,0.13632608,41169.0,41145.0,0.12248]
[1610110097007,0.13632608,41169.0,41115.0,2.45123814]
[1610110097307,0.13632608,41169.0,41107.0,3.9746]
[1610110097308,4.056,41171.0,41107.0,3.9746]
[1610110097507,4.056,41171.0,41107.0,4.07901]
[1610110097508,5.556,41171.0,41107.0,4.07901]
[1610110097907,4.056,41171.0,41107.0,4.07901]
[1610110099408,0.10207,41172.0,41140.0,0.13632608]
[1610110099808,0.10207,41172.0,41140.0,0.21340608]
[1610110100508,1.5,41201.0,41140.0,0.21340608]
[1610110101008,3.0597,41202.0,41140.0,0.21340608]
[1610110101208,3.0597,41202.0,41168.0,0.13632608]
[1610110101410,1.5,41218.0,41168.0,0.13632608]
[1610110101810,3.6474,41225.0,41168.0,0.13632608]
[1610110102416,0.0881,41239.0,41168.0,0.13632608]
[1610110102613,1.5,41244.0,41168.0,0.23772608]
[1610110103010,0.00029654,41243.0,41168.0,0.23772608]
[1610110103213,0.11161654,41243.0,41200.0,0.13632608]
[1610110103410,0.11161654,41243.0,41168.0,0.1014]
[1610110103610,0.0002965,41242.0,41168.0,0.1014]
[1610110103811,0.11132,41243.0,41168.0,0.1014]
[1610110104411,1.0,41231.0,41168.0,0.1014]
[1610110104812,2.60359,41231.0,41168.0,0.1014]
[1610110105212,2.60359,41231.0,41178.0,0.13632608]
[1610110105911,1.5,41230.0,41178.0,0.13632608]
[1610110106113,1.10359,41231.0,41178.0,0.13632608]
[1610110106312,0.10359,41231.0,41178.0,0.13632608]
[1610110106513,1.60359,41231.0,41178.0,0.13632608]
[1610110107217,1.60359,41231.0,41195.0,0.13632608]
[1610110107417,0.10359,41231.0,41195.0,0.13632608]
[1610110109019,0.10359,41231.0,41195.0,0.23098608]
[1610110109220,0.13632608,41213.0,41211.0,0.13632608]
[1610110109422,0.09109,41219.0,41211.0,0.13632608]
[1610110110427,0.10359,41231.0,41212.0,0.00027674]
[1610110110623,0.11132,41243.0,41212.0,0.00027674]
[1610110110923,0.00029631,41242.0,41212.0,0.00027674]
[1610110111123,0.10183631,41242.0,41212.0,0.00027674]
[1610110111325,0.10183631,41242.0,41225.0,0.13632608]
[1610110111523,0.10154,41242.0,41225.0,0.13632608]
[1610110112024,0.10154,41242.0,41204.0,0.09057]
[1610110112324,1.5,41241.0,41204.0,0.09057]
[1610110113124,0.10154,41242.0,41204.0,0.09057]
[1610110113424,0.10154,41242.0,41207.0,0.13632608]
[1610110113425,0.13632608,41218.0,41207.0,0.13632608]
[1610110114627,0.13632608,41218.0,41208.0,0.00027785]
[1610110115325,0.13632608,41218.0,41217.0,0.13632608]
[1610110115825,0.13632608,41218.0,41204.0,0.09057]
[1610110116027,0.13632608,41218.0,41195.0,0.09466]
[1610110116232,0.13632608,41218.0,41180.0,3.9194]
[1610110116729,0.13632608,41218.0,41187.0,0.00027786]
[1610110116927,0.13632608,41218.0,41187.0,0.08154786]
[1610110117128,0.13632608,41218.0,41187.0,0.08127]
[1610110117329,0.12541,41225.0,41211.0,0.13632608]
[1610110118132,0.10154,41242.0,41211.0,0.13632608]
[1610110118343,1.5,41263.0,41211.0,0.13632608]
[1610110119332,0.13632608,41212.0,41211.0,0.13632608]
[1610110119530,0.13632608,41212.0,41197.0,0.11859]
[1610110121349,0.13632608,41212.0,41187.0,0.08127]
[1610110121350,0.13632608,41198.0,41187.0,0.08127]
[1610110121835,0.13632608,41198.0,41177.0,0.13632608]
[1610110122432,0.13632608,41198.0,41178.0,0.00027801]
[1610110122634,0.13632608,41198.0,41177.0,0.13632608]
[1610110123432,0.07763,41204.0,41184.0,0.13632608]
[1610110124632,0.08056,41220.0,41185.0,0.00027801]
[1610110124835,1.0,41245.0,41185.0,0.00027801]
[1610110125233,1.0,41245.0,41212.0,0.13632608]
[1610110125733,1.0,41245.0,41196.0,0.07761]
[1610110125932,1.10558,41245.0,41196.0,0.07761]
[1610110126435,0.10558,41245.0,41196.0,0.07761]
[1610110126933,1.50029645,41244.0,41197.0,0.00027787]
[1610110127335,0.00029645,41243.0,41204.0,0.13632608]
[1610110127534,0.10558,41245.0,41204.0,0.13632608]
[1610110128235,0.10558,41245.0,41205.0,0.00027782]
[1610110129234,0.10558,41245.0,41210.0,0.13632608]
[1610110129839,1.5,41244.0,41196.0,0.07761]
[1610110130239,1.5,41244.0,41197.0,0.00027779]
[1610110130839,0.10558,41245.0,41197.0,0.00027779]
[1610110131040,1.5,41244.0,41197.0,0.00027779]
[1610110131341,0.11272,41244.0,41207.0,0.13632608]
[1610110131540,0.11272,41244.0,41208.0,0.00027777]
[1610110132442,0.00029636,41243.0,41208.0,0.00027777]
[1610110133241,0.13632608,41209.0,41208.0,0.00027777]
[1610110135244,0.13632608,41209.0,41199.0,0.13632608]
[1610110135446,0.13632608,41209.0,41208.0,0.00027783]
[1610110135948,0.13632608,41209.0,41200.0,0.00027783]
[1610110136148,0.13632608,41209.0,41208.0,0.00027783]
[1610110136346,0.13632608,41209.0,41200.0,0.02991953]
[1610110137249,0.13632608,41209.0,41208.0,0.13632608]
[1610110137549,0.08465,41217.0,41208.0,0.13660388]
[1610110137746,0.08465,41217.0,41208.0,0.16624257]
[1610110137949,0.08465,41217.0,41209.0,0.0299172]
[1610110138247,0.11272,41244.0,41209.0,3.6211172]
[1610110138446,0.1569,41262.0,41209.0,3.6211172]
[1610110138649,2.8528,41274.0,41210.0,0.02991051]
[1610110139050,0.00029632,41261.0,41210.0,0.02991051]
[1610110139248,0.00029632,41273.0,41241.0,0.13632608]
[1610110139448,0.00029629,41260.0,41241.0,0.13632608]
[1610110139649,0.09470629,41260.0,41241.0,0.13632608]
[1610110139851,0.09441,41260.0,41242.0,0.00027941]
[1610110141251,0.13632608,41243.0,41242.0,0.00027941]
[1610110141654,0.13632608,41243.0,41233.0,0.00027937]
[1610110141854,0.13632608,41243.0,41242.0,0.00027937]
[1610110142153,0.13632608,41243.0,41234.0,0.00027939]
[1610110142353,0.13632608,41243.0,41230.0,0.00027939]
[1610110142756,0.13632608,41243.0,41212.0,2.7858]
[1610110142757,0.13632608,41243.0,41235.0,0.00027939]
[1610110142954,0.13632608,41243.0,41231.0,0.00027939]
[1610110143154,0.13632608,41243.0,41236.0,0.00027939]
[1610110143354,0.12777,41249.0,41236.0,0.00027939]
[1610110143555,4.0134,41245.0,41213.0,0.02962721]
[1610110143754,1.5,41244.0,41237.0,0.00027937]
[1610110143955,1.5,41244.0,41207.0,0.02990785]
[1610110144157,1.5,41244.0,41238.0,0.00027617]
[1610110144456,1.0,41239.0,41208.0,0.0002762]
[1610110144656,1.5,41238.0,41208.0,0.0002762]
[1610110144856,1.08848,41239.0,41198.0,0.02963482]
[1610110145059,1.08848,41239.0,41209.0,0.0002762]
[1610110145259,1.08848,41239.0,41198.0,0.02991102]
[1610110145458,0.13632608,41213.0,41212.0,0.13632608]
[1610110145857,0.23558608,41213.0,41212.0,0.13660226]
[1610110146057,0.23558608,41213.0,41212.0,0.00027618]
[1610110146659,0.23558608,41213.0,41198.0,0.02990929]
[1610110146858,0.23558608,41213.0,41212.0,0.0002762]
[1610110147260,0.23558608,41213.0,41199.0,0.0002762]